Cogmind - Beta 17 @@@ ROGUE MODE // 2026.07.12 @ 18:37:21 Player: LanceLander Result: Destroyed by G-50 Soldier with Heavy Laser Performance ------------- Evolutions (5) 2500 Regions Visited (9) 1800 Robots Destroyed (105) 525 Value Destroyed (5699) 5699 Prototype IDs (2) 40 Alien Tech Used (0) 0 Bonus (1741) 1741 TOTAL SCORE: 12305 Bonus ------- High Alert Combat Kills 389 Follower Combat Kills 990 Entered Garrisons 200 Acquired ECA 300 Friendly Fire -138 Cogmind --------- Core Integrity 0/1000 Matter 287/300 Energy 315/315 System Corruption 7% Temperature Cool (9) Movement Treading (160) Location -5/Upper Caves Parts ------- > --- POWER (2) -------- Neutrino Core > --- PROPULSION (4) --- Medium Treads Nuclear Pulse Array > --- UTILITY (7) ------ Makeshift Heat Sink Advanced Heat Sink Encrypted Comm Array Hacking Suite Hacking Suite > --- WEAPON (4) ------- Autogun Makeshift Hammer Axe > --- INVENTORY (5) ---- Improved Shock Absorption System Improved Shock Absorption System Mini Drone Bay (1/3) Railgun Peak State ------------ > --- POWER ------------ Neutrino Core Neutrino Core > --- PROPULSION ------- Flexi-carbon Leg Flexi-carbon Leg Multireflex Exoskeleton > --- UTILITY ---------- Improved Cooling System Medium Storage Unit Machine Analyzer IFF Parser Improved Transmission Jammer Improved Medium Armor Plating Point Defense System > --- WEAPON ----------- Long-range Proton Cannon Long-range Proton Cannon Long-range Proton Cannon Enhanced Gauss Cannon > --- INVENTORY -------- Neutrino Core Flexi-carbon Leg Flexi-carbon Leg Flexi-carbon Leg Flexi-carbon Leg Advanced Signal Interpreter Thermic Laser Thermic Laser [Rating: 91] Favorites ----------- Power Neutrino Core Engine Ion Engine Power Core Neutrino Core Propulsion Flexi-carbon Leg Treads Light Treads Leg Flexi-carbon Leg Hover Unit Improved Hover Unit Flight Unit Nuclear Pulse Array Utility Medium Storage Unit Device Seismic Detector Storage Medium Storage Unit Processor Advanced Targeting Computer Hackware Hacking Suite Protection Improved Power Shielding Weapon Gauss Rifle Energy Gun Shock Rifle Energy Cannon Long-range Proton Cannon Ballistic Gun Gauss Rifle Ballistic Cannon Enhanced Gauss Cannon Launcher Mini Grenade Launcher Impact Weapon Mace Slashing Weapon Axe Build | -11 -10 -9 -8 -8 -7 -6 -6 -5 -5 ------- Run | Yrd Mat Mat Mat Gar Fac Fac Ext Fac Upp Slots Evolved 10 | . . 2 2 . 2 2 . 2 . Power 1 | . . . . . 1 . . . . Propulsion 2 | . . 1 . . . . . 1 . Utility 5 | . . 1 1 . 1 1 . 1 . Weapon 2 | . . . 1 . . 1 . . . Parts Attached 154 | 8 4 16 6 28 11 4 26 42 9 Power 18 | 1 1 2 . 2 2 . 4 5 1 Engine 8 | 1 1 2 . . . . 3 1 . Core 10 | . . . . 2 2 . 1 4 1 Reactor . | . . . . . . . . . . Propulsion 43 | 2 1 4 1 13 3 . 10 8 1 Treads 4 | . . . . 1 . . 2 . 1 Leg 36 | 2 1 4 1 12 3 . 7 6 . Wheel . | . . . . . . . . . . Hover 1 | . . . . . . . 1 . . Flight 2 | . . . . . . . . 2 . Utility 46 | 3 1 2 1 6 4 3 4 18 4 Device 25 | 2 . 1 . 4 1 1 2 10 4 Storage 4 | 1 1 . . . . . 1 1 . Processor 6 | . . . 1 . 2 1 . 2 . Hackware 3 | . . . . . . 1 . 2 . Protection 8 | . . 1 . 2 1 . 1 3 . Artifact . | . . . . . . . . . . Weapon 47 | 2 1 8 4 7 2 1 8 11 3 Energy Gun 16 | 1 1 4 . 4 1 . 3 2 . Energy Cannon 6 | . . . . . . . 1 5 . Ballistic Gun 14 | 1 . 2 4 1 . . 3 2 1 Ballistic Cannon 2 | . . . . 1 . . . 1 . Launcher 2 | . . 1 . 1 . . . . . Special Weapon . | . . . . . . . . . . Impact Weapon 4 | . . 1 . . . . 1 1 1 Slashing Weapon 3 | . . . . . 1 1 . . 1 Piercing Weapon . | . . . . . . . . . . Special Melee Weapon . | . . . . . . . . . . Unidentified Prototypes 2 | . . 1 . . . . . 1 . Corrupted Parts 3 | . . 3 . . . . . . . System Corruption 14 | . . 14 . . . . . . . Parts Lost 65 | . . 3 . 19 14 1 3 24 1 Power 8 | . . 1 . . 2 . . 4 1 Propulsion 20 | . . . . 9 6 1 . 4 . Utility 18 | . . 1 . 4 2 . 2 9 . Weapon 19 | . . 1 . 6 4 . 1 7 . Highest Loss Streak 13 | . . 2 . 8 12 13 2 11 1 To Critical Strikes . | . . . . . . . . . . Average Backups 7 | 1 5 8 9 8 9 4 8 8 4 Power 1 | . 1 . 1 2 2 1 1 . . Propulsion 2 | . . 1 1 2 2 . 2 3 . Utility 2 | . 2 3 2 1 4 3 2 2 3 Weapon 1 | . 1 2 3 1 . . 1 2 1 Tool/Special . | . . . . . . . . . . Unused Backups 30 | . 3 5 2 4 2 2 4 6 2 Power 5 | . 1 . . 2 1 . . 1 . Propulsion 6 | . . 2 . . . . 4 . . Utility 9 | . 1 . 1 . 1 2 . 3 1 Weapon 9 | . 1 2 1 2 . . . 2 1 Tool/Special 1 | . . 1 . . . . . . . Average Slot Usage (%) 86 | . 100 99 99 94 95 30 84 92 46 Engine 4 | . 14 11 9 1 . . 7 1 2 Core 5 | . . . . 7 14 . 2 8 1 Leg 19 | . 28 33 27 24 22 . 11 19 . Device 12 | . 21 20 9 9 7 2 4 16 12 Storage 6 | . 7 11 9 9 6 . 4 4 . Processor 8 | . . . 9 9 14 14 17 9 . Hackware 2 | . . . . . . 5 5 . 11 Protection 4 | . . 1 9 8 7 4 3 5 . Energy Gun 5 | . 14 10 7 7 3 . 6 3 . Energy Cannon 2 | . . . . . . . . 9 . Ballistic Gun 8 | . 14 9 18 11 6 . 9 5 3 Launcher 1 | . . 1 . 5 3 . . . . Peak Build Rating 91 | 9 9 21 27 33 42 23 66 91 53 Average Rating 41 | 5 8 16 24 27 38 17 50 78 41 On Entrance 20 | . 9 8 20 26 24 15 20 62 24 Avg Prop Armor Cover (%) 4 | . . . . . . . 4 1 5 Naked Turns 9 | . . . . . . . . 9 . Heaviest Build 87 | 11 19 27 31 30 36 8 52 87 25 Greatest Support 80 | 20 20 45 45 45 45 10 60 80 28 Greatest Overweight (x) 2 | . . . . 1 2 1 1 1 1 Average Overweight (x) . | . . . . . . . . . . Largest Inventory Capacity 15 | 8 10 10 10 10 10 5 10 15 5 Average Capacity 8 | 7 7 10 10 10 9 5 9 9 5 Most Carried 10 | 3 7 10 10 10 10 5 10 10 5 Average Carried 7 | 1 5 8 9 8 9 4 8 8 4 Final Capacity 10 | 5 10 10 10 10 5 5 10 5 5 Final Carried 10 | 3 7 10 10 10 5 5 10 4 4 Class Distribution -------------------- 29% | Scavenger-Gunner 28% | Mutant 16% | Scavenger-Mutant 8% | Hacker-Mutant 5% | Gunner 5% | Scavenger-Skirmisher Dominant Class ---------------- Mutant | -10/Materials Mutant | -9/Materials Gunner | -8/Materials Scavenger-Gunner | -8/Garrison Scavenger-Mutant | -7/Factory Mutant | -6/Factory Scavenger-Gunner | -6/Extension Scavenger-Gunner | -5/Factory Hacker-Mutant | -5/Upper Caves Resources | -11 -10 -9 -8 -8 -7 -6 -6 -5 -5 ----------- Run | Yrd Mat Mat Mat Gar Fac Fac Ext Fac Upp Matter Collected 3416 | 271 79 230 152 818 269 82 625 563 327 Remotely . | . . . . . . . . . . Salvage Created 4399 | 19 305 681 152 1072 462 . 651 1057 . Parts 211 | 6 15 41 8 47 25 . 28 41 . Haulers Intercepted 2 | . 2 . . . . . . . . Recyclers Shooed 4 | . 1 . . . 1 1 . 1 . Parts Field Recycled . | . . . . . . . . . . Retrieved Matter . | . . . . . . . . . . Parts Self-Destructed 5 | . . . . . . . . . 5 Prevented . | . . . . . . . . . . Parts Restored . | . . . . . . . . . . Kills | -11 -10 -9 -8 -8 -7 -6 -6 -5 -5 ------- Run | Yrd Mat Mat Mat Gar Fac Fac Ext Fac Upp Combat Hostiles Destroyed 92 | . 3 18 3 29 8 . 10 21 . Melee 2 | . . . . . . . 1 1 . Guns 52 | . 3 13 3 12 7 . 6 8 . Cannons 14 | . . . . 4 . . 2 8 . AOE 21 | . . 5 . 13 1 . . 2 . Classes Destroyed 15 | 1 3 3 1 2 . . 3 2 . Worker 2 | . . . . . . . . 2 . Builder 2 | . . 1 . . . . . 1 . Tunneler 1 | 1 . . . . . . . . . Hauler 2 | . 2 . . . . . . . . Recycler 2 | . 1 . . . 1 . . . . Mechanic 1 | . . . . . . . . 1 . Watcher 3 | . . . . . . . 1 2 . Swarmer 11 | . . 4 . . . . . 7 . Cutter 4 | . . . . 2 . . . 2 . Grunt 52 | . 3 10 1 20 5 . 5 8 . Brawler 1 | . . . . . . . 1 . . Sentry 13 | . . 4 1 4 . . 3 1 . Hunter 2 | . . . 1 . . . . 1 . Programmer 8 | . . . . 3 3 . . 2 . Behemoth 1 | . . . . . . . 1 . . Best Kill Streak 6 | 1 2 4 1 6 3 . 3 5 . Combat Bots Only 6 | . 1 4 1 6 3 . 3 5 . Max Kills in Single Turn 3 | 1 1 3 1 3 1 . 1 2 . Gunslinging . | . . . . . . . . . . Exploded 3 | . . 3 . 3 1 . . 1 . Melee 1 | . . . . . . . 1 1 . Uniques/NPCs Destroyed . | . . . . . . . . . . Combat | -11 -10 -9 -8 -8 -7 -6 -6 -5 -5 -------- Run | Yrd Mat Mat Mat Gar Fac Fac Ext Fac Upp Hostile Shots Fired 921 | . 16 76 22 200 245 3 107 237 15 Missed 301 | . 4 23 6 60 104 1 38 59 6 Hits 620 | . 12 53 16 140 141 2 69 178 9 Melee 25 | . . . . 8 . . . 17 . Projectile 595 | . 12 53 16 132 141 2 69 161 9 AOE 5 | . . . . 1 . . . 4 . Critical Strikes 28 | . . 1 . 11 1 . 4 11 . Part Disruptions 3 | . . . . . . . . 3 . Damage Taken 10335 | . 146 722 232 2442 1315 34 1105 4009 330 Core 2008 | . 38 92 35 403 272 14 149 754 251 Absorbed by Shields 40 | . . . . 40 . . . . . Redirected to Shielding 97 | . . . . 40 34 . . 23 . Ignored by Resistances 36 | . . . . 33 3 . . . . Regen/Repaired (Parts) 125 | . . 43 . . . . . 82 . Core Remaining (%) 70 | 100 84 77 . 20 61 . 80 . . Volleys Fired 301 | 1 29 56 10 73 29 . 39 64 . Largest 4 | 2 2 2 3 3 2 . 4 4 . Hottest 324 | 60 70 90 69 128 73 . 201 324 . Shots Fired 680 | 2 58 108 30 144 45 . 115 178 . Gun 559 | 2 58 106 30 104 45 . 107 107 . Cannon 91 | . . . . 12 . . 8 71 . Launcher 30 | . . 2 . 28 . . . . . Special . | . . . . . . . . . . Kinetic 371 | 1 29 45 30 84 29 . 82 71 . Thermal 143 | 1 29 25 . . . . 33 55 . Explosive 30 | . . 2 . 28 . . . . . Electromagnetic 136 | . . 36 . 32 16 . . 52 . Robot Hit Streak 18 | 1 18 11 10 14 10 . 13 17 . Robot Miss Streak 5 | . 4 4 1 3 3 . 2 5 . Penetration Max 1 | . . . . 1 . . 1 1 . Secondary Targets 6 | . . 1 . 1 2 . 1 1 . Max Gunslinging Chain 1 | . . 1 . 1 1 . 1 1 . Shots Hit Robots 462 | 1 38 74 22 90 33 4 87 113 . Core Hits 224 | 1 16 30 10 58 18 . 33 58 . Critical Kills 1 | . . . . . . . 1 . . Critical Parts Destroyed . | . . . . . . . . . . Critical Strikes 18 | . 2 5 . 1 . . 2 8 . Burn 13 | . 2 4 . . . . 1 6 . Meltdown 1 | . . . . . . . 1 . . Blast 2 | . . . . . . . . 2 . Corrupt 2 | . . 1 . 1 . . . . . Melee Attacks 29 | . . . . . 1 7 21 . . Impact 16 | . . . . . . . 16 . . Slashing 13 | . . . . . 1 7 5 . . Piercing . | . . . . . . . . . . Sneak Attacks 2 | . . . . . 1 1 . . . Combat Hostiles . | . . . . . . . . . . Follow-up Attacks 3 | . . . . . . . 3 . . Damage Inflicted 11676 | 11 409 1260 306 3219 741 177 2088 3465 . Guns 6103 | 11 409 950 306 1264 560 . 1313 1290 . Cannons 2078 | . . . . 220 . . 251 1607 . Explosions 2633 | . . 310 . 1732 107 . . 484 . Melee 775 | . . . . . 74 177 524 . . Ramming 87 | . . . . 3 . . . 84 . Kinetic 4379 | . 145 334 306 1120 352 . 1044 1078 . Thermal 2352 | 11 264 371 . . 107 . 520 1079 . Explosive 1933 | . . 201 . 1732 . . . . . Electromagnetic 2150 | . . 354 . 364 208 . . 1224 . Impact 324 | . . . . . . . 324 . . Slashing 451 | . . . . . 74 177 200 . . Piercing . | . . . . . . . . . . Highest Corruption 14 | . . 14 . 5 1 . 4 7 7 Average Corruption 5 | . . 10 . 4 1 . 4 5 7 Corruption Purged 1 | . . . . . . . . 1 . Corruption Blocked . | . . . . . . . . . . Effects 73 | . . 1 . 32 . . 1 16 23 Message Errors 15 | . . . . 6 . . . 3 6 Matter Fused 17 | . . . . 8 . . . 4 5 Heat Flow Errors 10 | . . . . 5 . . . . 5 Energy Discharges 10 | . . 1 . 4 . . . 3 2 Parts Rejected 3 | . . . . 1 . . 1 1 . Data Loss (minor) 12 | . . . . 5 . . . 3 4 Data Loss (major) 2 | . . . . 2 . . . . . Misfires 1 | . . . . . . . . 1 . Alerts 2 | . . . . 1 . . . . 1 Weapon Failures 1 | . . . . . . . . 1 . Overload Shots . | . . . . . . . . . . Overflow Damage 460 | . . 39 . 52 34 14 16 305 . Projectiles 67 | . . . . . . . . 67 . Explosions 327 | . . 39 . 52 . . . 236 . Melee 66 | . . . . . 34 14 16 2 . Knockbacks 12 | . . . . 3 . . 1 8 . Impact 1 | . . . . . . . 1 . . Kinetic 10 | . . . . 3 . . . 7 . Secondary 1 | . . . . . . . . 1 . Self-Inflicted Damage 577 | . . 56 . 316 . . . 205 . Shots 13 | . . 1 . 9 . . . 3 . Rammed . | . . . . . . . . . . Targets Rammed 27 | . 1 . . 1 . . . 25 . Kicked 27 | . 1 . . 1 . . . 25 . Crushed . | . . . . . . . . . . Highest Temperature 489 | 20 166 193 41 231 65 . 276 489 202 Average Temperature 78 | 15 55 68 18 63 22 . 91 117 85 Received Heat Transfer 2580 | . 84 306 54 891 387 . 438 387 33 Effects 6 | . . . . . . . . 6 . Shutdowns 1 | . . . . . . . . 1 . Interference 1 | . . . . . . . . 1 . Damage (major) 4 | . . . . . . . . 4 . Siege Activations . | . . . . . . . . . . Martial Activations . | . . . . . . . . . . Shielding Activations . | . . . . . . . . . . Robots Disrupted . | . . . . . . . . . . Combat Hostiles . | . . . . . . . . . . Robots Corrupted 2 | . . . . . . . . 2 . Combat Hostiles 2 | . . . . . . . . 2 . Parts Fried 13 | . . 1 . 2 1 . . 9 . Impact Corruptions 1 | . . . . . . . . 1 . Robots Melted 1 | . . . . . . . 1 . . Combat Hostiles 1 | . . . . . . . 1 . . Parts Melted 12 | . 1 4 . . 1 . 1 5 . Heat Transferred 5845 | 25 925 1123 . . 150 . 1122 2500 . Parts Sabotaged . | . . . . . . . . . . Parts Stolen . | . . . . . . . . . . Parts Stripped . | . . . . . . . . . . Power Chain Reactions 4 | . . 1 . . 1 . . 2 . Alert | -11 -10 -9 -8 -8 -7 -6 -6 -5 -5 ------- Run | Yrd Mat Mat Mat Gar Fac Fac Ext Fac Upp Maximum Alert Level 4 | . . . . 4 3 1 2 2 . Low Security (%) 52 | 100 100 100 100 12 . 2 81 37 . Level 1 20 | . . . . 20 . 97 16 43 . Level 2 18 | . . . . 30 97 . 1 19 . Level 3 5 | . . . . 24 2 . . . . Level 4 2 | . . . . 12 . . . . . Level 5 . | . . . . . . . . . . High Security . | . . . . . . . . . . Max Security . | . . . . . . . . . . Peak Influence 1241 | 5 40 180 55 1241 704 269 406 465 . Initial 651 | . . . . 33 651 269 99 198 . Average 278 | . 6 85 8 590 646 230 114 267 . Influence Increases 4515 | 5 89 487 108 1398 293 34 849 1102 150 Destroy 0b10 Robot/C 2340 | . 60 360 60 580 220 . 460 600 . Destroy 0b10 Robot/NC 75 | 5 15 5 . . 5 . 10 35 . Destroy Leader 364 | . 14 90 20 20 30 . 74 116 . Allied During Kill 295 | . . . . . 19 . 180 96 . Successful Hack 111 | . . 17 13 21 . 4 20 36 . Disable Machine 165 | . . . 15 . 15 . 45 90 . Anti-Garrison Action 500 | . . . . 500 . . . . . Destroy Structure 395 | . . 15 . 232 4 . 30 114 . Partial Spotted 15 | . . . . . . 15 . . . Lose Combat Pursuer 255 | . . . . 45 . 15 30 15 150 Influence Decreases 4465 | 5 89 487 57 208 984 381 646 1084 524 Entered New Map 1359 | . . . . 18 590 281 104 208 158 Time Decay 2072 | 5 89 307 57 . 214 90 398 556 356 Lost Part 650 | . . 30 . 190 140 10 30 240 10 Lost Ally 234 | . . . . . 40 . 114 80 . Purge Threat 150 | . . 150 . . . . . . . Squads Dispatched 21 | . . 4 1 . 4 1 3 8 . Investigation 7 | . . 3 . . . . 2 2 . Extermination 4 | . . . . . 1 . . 3 . Reinforcement 7 | . . 1 . . 1 1 1 3 . Assault . | . . . . . . . . . . Garrison 3 | . . . 1 . 2 . . . . Intercept . | . . . . . . . . . . Searches Triggered . | . . . . . . . . . . Construction Impeded 2 | . . . . . . . 1 1 . Haulers Reinforced . | . . . . . . . . . . Active Scanning Responses . | . . . . . . . . . . Cargo Convoy Interrupts . | . . . . . . . . . . Stealth | -11 -10 -9 -8 -8 -7 -6 -6 -5 -5 --------- Run | Yrd Mat Mat Mat Gar Fac Fac Ext Fac Upp Distress Signals 5 | . 1 . 2 . . . 2 . . Communications Jammed 13 | . . . . . . . . 13 . Distress Signals 13 | . . . . . . . . 13 . Times Spotted 177 | . 10 20 6 36 15 2 30 41 17 Peak Tracking Total 7 | . 5 5 4 7 4 1 3 7 5 Tactical Retreats 8 | . . . . 1 . 1 1 1 4 Traps | -11 -10 -9 -8 -8 -7 -6 -6 -5 -5 ------- Run | Yrd Mat Mat Mat Gar Fac Fac Ext Fac Upp Traps Triggered 7 | . . 1 . 1 1 . . 2 2 Indirectly . | . . . . . . . . . . Trap Hack Attempts . | . . . . . . . . . . Triggered . | . . . . . . . . . . Disarmed . | . . . . . . . . . . Reprogrammed . | . . . . . . . . . . Reused . | . . . . . . . . . . Traps Extracted . | . . . . . . . . . . Installed . | . . . . . . . . . . Triggered . | . . . . . . . . . . Machines | -11 -10 -9 -8 -8 -7 -6 -6 -5 -5 ---------- Run | Yrd Mat Mat Mat Gar Fac Fac Ext Fac Upp Machines Disabled 24 | . . . 1 13 1 . 3 6 . Max in Single Turn 3 | . . . 1 2 1 . 1 3 . Garrison Relay 4 | . . . . 4 . . . . . Phase Generator 1 | . . . . 1 . . . . . Energy Cycler 1 | . . . . . . . 1 . . Machines Repaired . | . . . . . . . . . . Machines Dismantled . | . . . . . . . . . . Machines Sabotaged . | . . . . . . . . . . Overloaded Fab Kills . | . . . . . . . . . . Hacking | -11 -10 -9 -8 -8 -7 -6 -6 -5 -5 --------- Run | Yrd Mat Mat Mat Gar Fac Fac Ext Fac Upp Machines Accessed 29 | . 1 5 3 4 2 3 6 5 . Terminals 21 | . . 4 2 4 1 3 6 1 . Fabricators 4 | . . . . . 1 . . 3 . Repair Stations 2 | . . 1 . . . . . 1 . Recycling Units 1 | . 1 . . . . . . . . Scanalyzers . | . . . . . . . . . . Garrison Access 1 | . . . 1 . . . . . . Total Hacks 63 | . 3 15 8 7 3 4 12 11 . Successful 34 | . 3 8 4 3 1 3 7 5 . Failed 29 | . . 7 4 4 2 1 5 6 . Catastrophic 4 | . . . . 1 . . 2 1 . Database Lockouts . | . . . . . . . . . . Manual 2 | . . . . . . . . 2 . Terminals 43 | . . 10 5 7 2 4 12 3 . Fabricators 6 | . . . . . 1 . . 5 . Repair Stations 8 | . . 5 . . . . . 3 . Recycling Units 3 | . 3 . . . . . . . . Scanalyzers . | . . . . . . . . . . Garrison Access 3 | . . . 3 . . . . . . Terminal Hacks 20 | . . 4 2 3 . 3 7 1 . Record 2 | . . 1 . . . . 1 . . Open Door 6 | . . . . 1 . 1 4 . . Open DSF 1 | . . . . . . 1 . . . Emergency Access Points 1 | . . . . 1 . . . . . Terminal Index 1 | . . . 1 . . . . . . Alert Level 1 | . . 1 . . . . . . . Unreport Threat 1 | . . 1 . . . . . . . Locate Traps 1 | . . . . . . 1 . . . Surveillance Status 1 | . . . 1 . . . . . . Recall Reinforcements 1 | . . . . . . . 1 . . Zone Layout 3 | . . 1 . . . . 1 1 . Garrison Registry 1 | . . . . 1 . . . . . Fabricator Hacks 2 | . . . . . 1 . . 1 . Network Status 2 | . . . . . 1 . . 1 . Repair Station Hacks 6 | . . 4 . . . . . 2 . Scan Component 3 | . . 2 . . . . . 1 . Repair 3 | . . 2 . . . . . 1 . Recycling Unit Hacks 3 | . 3 . . . . . . . . Process 1 | . 1 . . . . . . . . Report Inventory 1 | . 1 . . . . . . . . Retrieve Matter 1 | . 1 . . . . . . . . Scanalyzer . | . . . . . . . . . . Garrison Access Hacks 2 | . . . 2 . . . . . . Unlock Access 1 | . . . 1 . . . . . . Coupler Status 1 | . . . 1 . . . . . . Unauthorized Hacks 1 | . . . . . . . . 1 . Terminals . | . . . . . . . . . . Fabricators 1 | . . . . . . . . 1 . Report 1 | . . . . . . . . 1 . Repair Stations . | . . . . . . . . . . Recycling Units . | . . . . . . . . . . Scanalyzers . | . . . . . . . . . . Garrison Access . | . . . . . . . . . . Data Cores Recovered . | . . . . . . . . . . Used . | . . . . . . . . . . Hacking Detections 16 | . 1 4 2 2 1 1 2 3 . Full Trace Events 8 | . 1 2 . 1 . . 2 2 . Feedback Events . | . . . . . . . . . . Feedback Blocked . | . . . . . . . . . . Robot Schematics Acquired . | . . . . . . . . . . Robots Built . | . . . . . . . . . . Authchips . | . . . . . . . . . . Time . | . . . . . . . . . . Total Robot Build Rating . | . . . . . . . . . . Part Schematics Acquired . | . . . . . . . . . . Parts Built . | . . . . . . . . . . Authchips . | . . . . . . . . . . Time . | . . . . . . . . . . Total Part Build Rating . | . . . . . . . . . . Part Studies Acquired . | . . . . . . . . . . Parts Repaired 3 | . . 2 . . . . . 1 . Time 89 | . . 64 . . . . . 25 . Parts Recycled . | . . . . . . . . . . Recycled Matter 92 | . 92 . . . . . . . . Retrieved Matter 92 | . 92 . . . . . . . . Retrieved Components . | . . . . . . . . . . Parts Scanalyzed . | . . . . . . . . . . Part Schematics Acquired . | . . . . . . . . . . Parts Damaged . | . . . . . . . . . . Bothacking | -11 -10 -9 -8 -8 -7 -6 -6 -5 -5 ------------ Run | Yrd Mat Mat Mat Gar Fac Fac Ext Fac Upp Used RIF Installer . | . . . . . . . . . . Robots Hacked . | . . . . . . . . . . Non-combat . | . . . . . . . . . . Combat . | . . . . . . . . . . Robot Hacks Applied . | . . . . . . . . . . Relay Couplers Released 12 | . . . . 12 . . . . . Machine Destruction 12 | . . . . 12 . . . . . Fabnet Peak Effective % . | . . . . . . . . . . Robots Rewired 9 | . . . . 3 . . 6 . . Allies Hacked . | . . . . . . . . . . Hacks Repelled . | . . . . . . . . . . Allies | -11 -10 -9 -8 -8 -7 -6 -6 -5 -5 -------- Run | Yrd Mat Mat Mat Gar Fac Fac Ext Fac Upp Total Allies 15 | . . . . 3 . . 12 . . Largest Group 8 | . . . . 3 3 . 8 5 . Highest-Rated Group 370 | . . . . 76 76 . 370 269 . Highest-Rated Ally 159 | . . . . 31 31 . 159 153 . Initial Warlord ECA Mod 8 | . . . . . 8 7 7 6 6 Total Orders 6 | . . . . . . . . . 6 EXPLORE 4 | . . . . . . . . . 4 RETURN 2 | . . . . . . . . . 2 Ally Attacks 181 | . . . . . 30 . 111 40 . Total Damage 3436 | . . . . . 481 . 2202 753 . Kills 29 | . . . . . 4 . 15 10 . Allies Corrupted 1 | . . . . . . . . 1 . Allies Melted . | . . . . . . . . . . Intel | -11 -10 -9 -8 -8 -7 -6 -6 -5 -5 ------- Run | Yrd Mat Mat Mat Gar Fac Fac Ext Fac Upp Active Infowar (turns) 3552 | 21 453 907 364 143 . 81 . 1583 . IFF 800 | . . . . . . . . 800 . Terrain 879 | 3 223 572 . . . 81 . . . Seismic 1888 | 21 453 907 364 143 . . . . . Machine Analysis 1262 | . . . . . . . . 1262 . Jamming 1366 | . . . . . . . . 1366 . ECM 106 | . . 106 . . . . . . . Robot Analysis Total . | . . . . . . . . . . Derelict Logs Recovered . | . . . . . . . . . . Drone Launches 4 | . . . . . . . . . 4 Drone Recoveries 2 | . . . . . . . . . 2 Exploration | -11 -10 -9 -8 -8 -7 -6 -6 -5 -5 ------------- Run | Yrd Mat Mat Mat Gar Fac Fac Ext Fac Upp Turns Passed 7225 | 73 453 909 364 1381 458 199 954 1630 804 Spaces Moved 4873 | 48 279 375 216 818 283 325 580 793 1156 Core 519 | 3 . . . . . 320 170 26 . Treads 271 | . . . . 1 . . 87 . 183 Legs 3037 | 45 279 375 216 817 283 5 282 735 . Wheels . | . . . . . . . . . . Hover 41 | . . . . . . . 41 . . Flight 1005 | . . . . . . . . 32 973 Fastest Speed 40 | 50 120 120 110 110 120 50 50 40 40 Average Speed 102 | 115 120 120 114 128 121 51 104 132 59 Slowest Speed 260 | 120 120 120 120 240 260 120 190 190 160 Overloaded Moves . | . . . . . . . . . . Propulsion Burnouts . | . . . . . . . . . . Robots Hopped 5 | . . . . . . . . 5 . Potential Cave-ins . | . . . . . . . . . . Cave-ins Triggered 1 | . . . . . . . 1 . . Exploration Rate (%) 37 | 3 35 32 19 93 8 10 50 24 96 Regions Visited 9 Branch Regions 2 Pre-discovered Areas 1 | . . . . . . . . . 1 Known Exits Taken 2 | . . . 1 . . 1 . . . Unknown Exits Taken 6 | 1 1 1 . . 1 . 1 1 . Scrap Searched 2 | . . . . . . . . . 2 Spaces Dug 8 | . . . . 8 . . . . . Terrain Destroyed 465 | . . 18 . 354 3 . 33 57 . Melee . | . . . . . . . . . . Projectile 16 | . . . . 3 . . 4 9 . AOE 449 | . . 18 . 351 3 . 29 48 . Terrain Rammed . | . . . . . . . . . . Walls Destroyed . | . . . . . . . . . . Machines Disabled . | . . . . . . . . . . Actions | -11 -10 -9 -8 -8 -7 -6 -6 -5 -5 --------- Run | Yrd Mat Mat Mat Gar Fac Fac Ext Fac Upp Total 6515 | 60 349 731 314 1026 357 344 824 1233 1277 Wait 761 | . 21 244 61 18 12 . 36 266 103 Move 4852 | 47 278 374 216 813 282 324 579 783 1156 Hop 4 | . . . . . . . . 4 . Pick Up 105 | 4 8 19 8 17 10 3 18 15 3 Fast Attach 70 | 6 . 5 2 7 2 3 14 23 8 Attach 65 | 1 1 5 2 17 9 1 11 16 2 Detach 13 | . . . . 1 . 1 7 2 2 Swap 53 | 1 4 12 4 9 4 . 7 12 . Drop 95 | . 7 14 11 10 8 5 19 18 3 Fire 301 | 1 29 56 10 73 29 . 39 64 . Melee 26 | . . . . . 1 7 18 . . Ram . | . . . . . . . . . . Kick 27 | . 1 . . 1 . . . 25 . Crush . | . . . . . . . . . . Escape Stasis 8 | . . . . 3 . . . 5 . Rewire 135 | . . 2 . 57 . . 76 . . Trap . | . . . . . . . . . . Miscellaneous . | . . . . . . . . . . Route ------- -11/Scrapyard -10/Materials -9/Materials -8/Materials -8/Garrison (discovered 3 exits: *Fac x3) -7/Factory -6/Factory -6/Extension -5/Factory -5/Upper Caves (discovered 1 exit: [*Upp]) History --------- Turn | Location | Event 13 | -11/Scrapyard | Discovered new exit (range 15) 74 | -11/Scrapyard | Entered Materials 319 | -10/Materials | Build established: Mutant 415 | -10/Materials | Discovered new exit (range 16) 527 | -10/Materials | Entered another Materials area 527 | -9/Materials | Evolved 2 slots: Propulsion x1, Utility x1 589 | -9/Materials | Repaired Med. Laser 628 | -9/Materials | Repaired Imp. Terrain Scanner 820 | -9/Materials | Build established: Scavenger-Mutant 1131 | -9/Materials | Build established: Mutant 1350 | -9/Materials | Discovered new exit (range 12) 1426 | -9/Materials | System corruption reached 10% 1436 | -9/Materials | Entered another Materials area 1436 | -8/Materials | Evolved 2 slots: Utility x1, Weapon x1 1756 | -8/Materials | Garrison activated, responded to threat 1800 | -8/Materials | Identified exit to Garrison 1800 | -8/Materials | Entered Garrison 1818 | -8/Garrison | Discovered new exit (range 81) 1818 | -8/Garrison | Discovered new exit (range 35) 1818 | -8/Garrison | Discovered new exit (range 43) 1850 | -8/Garrison | Triggered checkpoint 1850 | -8/Garrison | Triggered checkpoint 1858 | -8/Garrison | Triggered checkpoint 1891 | -8/Garrison | Build established: Gunner 1893 | -8/Garrison | Attempted to access garrison exit controls, blocked by remote lockdown 2002 | -8/Garrison | Lost 8 parts (4n2u2w) 2106 | -8/Garrison | Triggered checkpoint 2112 | -8/Garrison | Core integrity fell below 50% 2170 | -8/Garrison | Lost 5 parts (3n1u1w) 2208 | -8/Garrison | Build established: Scavenger-Gunner 2252 | -8/Garrison | Phase Generator disabled 2585 | -8/Garrison | Attempted to access garrison exit controls, blocked by remote lockdown 2630 | -8/Garrison | Triggered checkpoint 2778 | -8/Garrison | Triggered checkpoint 2867 | -8/Garrison | Triggered checkpoint 2900 | -8/Garrison | Garrison Relay disabled 3026 | -8/Garrison | Garrison Relay disabled 3149 | -8/Garrison | Build established: Mutant 3181 | -8/Garrison | Entered Factory 3181 | -7/Factory | Accompanied by 3 allies 3181 | -7/Factory | Evolved 2 slots: Power x1, Utility x1 3507 | -7/Factory | Garrison activated, responded to threat 3607 | -7/Factory | Discovered new exit (range 16) 3639 | -7/Factory | Entered another Factory area 3639 | -6/Factory | Evolved 2 slots: Utility x1, Weapon x1 3676 | -6/Factory | Lost 13 parts (2p5n2u4w) 3684 | -6/Factory | Identified exit to DSF 3823 | -6/Factory | Discovered new exit (range 6) 3832 | -6/Factory | Identified exit to Extension 3838 | -6/Factory | Entered Extension 3881 | -6/Extension | Spotted B-75 Beast 4357 | -6/Extension | Rescued a captive Derelict 4416 | -6/Extension | Rescued a captive Derelict 4582 | -6/Extension | Build established: Scavenger-Gunner 4599 | -6/Extension | Rescued a captive Derelict 4615 | -6/Extension | Energy Cycler disabled 4615 | -6/Extension | Rescued a captive Derelict 4616 | -6/Extension | Rescued a captive Derelict 4616 | -6/Extension | Rescued a captive Derelict 4617 | -6/Extension | Rescued a captive Derelict 4618 | -6/Extension | Rescued a captive Derelict 4618 | -6/Extension | Rescued a captive Derelict 4641 | -6/Extension | Rescued A7 4662 | -6/Extension | Spotted B-75 Beast 4665 | -6/Extension | Allies destroyed B-75 Beast 4678 | -6/Extension | Crushed by falling debris 4682 | -6/Extension | Discovered new exit (range 16) 4683 | -6/Extension | Destroyed B-75 Beast 4711 | -6/Extension | Lost 5 allies 4792 | -6/Extension | Entered Factory 4792 | -5/Factory | Accompanied by 5 allies (A7) 4792 | -5/Factory | Evolved 2 slots: Propulsion x1, Utility x1 5434 | -5/Factory | Build established: Scavenger-Skirmisher 5562 | -5/Factory | Lost 3 allies 5725 | -5/Factory | Repaired Flexi-carbon Leg 5906 | -5/Factory | Lost 3 parts (2u1w) 6032 | -5/Factory | Lost 3 parts (1u2w) 6249 | -5/Factory | Lost 11 parts (2p2n4u3w) 6390 | -5/Factory | Released all parts (14) 6393 | -5/Factory | Core integrity fell below 50% 6401 | -5/Factory | Discovered new exit (range 13) 6421 | -5/Factory | Lost 3 parts (2p1n) 6422 | -5/Factory | Entered Upper Caves 6428 | -5/Upper Caves | Met a Warlord Commander 6429 | -5/Upper Caves | Learned location of Warlord (-4) 6430 | -5/Upper Caves | Warlord Commander delivered Encrypted Comm Array 6432 | -5/Upper Caves | Found Encrypted Comm Array 6457 | -5/Upper Caves | Core integrity fell below 20% 6481 | -5/Upper Caves | Spotted B-75 Beast 6517 | -5/Upper Caves | Encountered a Warlord checkpoint 6596 | -5/Upper Caves | Attracted the attention of an 0b10 outpost 6670 | -5/Upper Caves | Build established: Hacker-Mutant 7217 | -5/Upper Caves | Discovered new exit (range 10) 7226 | -5/Upper Caves | Destroyed by G-50 Soldier with Heavy Laser Last Messages --------------- 06974_ Found Mak. Hammer. 06974_ Found 57 Matter. 06975_ Acquired 20 matter. 06978_ Acquired Mak. Hammer. 06981_ Acquired Unknown Device. 06981_ Identified Mak. Heat Sink. 06984_ Acquired 20 matter. 06986_ Acquired 10 matter. 06987_ System corrupted: Heat flow error (+240). 07019_ System corrupted: Matter fused (-7). 07041_ System corrupted: Component data lost. 07057_ System corrupted: IFF burst signal emitted. 07074_ GDKIRVMF0QPBG V#A/XGB|SXT=FB 07092_ System corrupted: Matter fused (-6). 07126_ System corrupted: Component data lost. 07156_ System corrupted: Heat flow error (+125). 07175_ System corrupted: Component data lost. 07209_ System corrupted: Energy discharge (-85). 07217_ EXIT=FOUND Map ----- +----------------------------------------------------+ | ??????????????????????????????????????# | | ??????????????????????????????????????## | | ?????????????????????????????????#####?### | | ????????????????????????????????## ##??## | | ????????????????????????????????# ##??## | | #???????????????????????????????# #???#### | | #???????????????????????????????# * / [#??????## | | #????????????????????????????????# #???????# | | ##??????????????????????????????### #???????## | | ##????????????????????????????## ## $ ########### | | ####???????????????########### ## "%" | | #??????????????## " | | #?????????????## !% ######## | | ## #????????????## ####### % ##??????? | | ### #????######### ##?????## #???????? | | #?# #???## # ######??# #???????? | | ??# #??## #?# #??????? | | ### #?## ######### ### #?## #??????? | | ## #?# ##???????## ##??%#??# ## ?????? | | ### ##?????????###### #??# ### ##????? | | # ### #?#?????????## # ####% #??####?????? | | # ### #?# ???????## < g % #???????????? | | # ### #?? ??????## gg #???????????? | | # ## ##??# ?????? %% ### ####???????????? | | # ## ##???# ## #?? % g ???# #??????????????? | | ##### ###### #???#@#????# #??????????????? | | ### % #??????# #????#% #??????????????? | | # ! #?????# #????#$ #??????????????? | | ## ####### # ####?# #???## #???????######?? | | ?## #??????# # ### #???# ???????## #?? | | ??## # #??????# #???# ?????### #??? | | ?###### # #?????## # ###????# ####### ##?? | | ?# #######?#??????### # #?????## ## ##? | | ?# # ####??????????# ##?????# ! #? | | ?## # ####???????# #??????# ## | | ## ##??????# #??????## | | ## #?????## ##??????# | | # ## ##???## #??????# | | #### #??## #?###### ## | | ## #### ### #### | | ## # ## & #### ### #??? | | # # ## #??# #?## ##??? | | ## ###########??# #?## #???? | | #### # #####????????????# #?# ##??? | | #??####### ##????????????????## ##?###### #??? | | #????????###??????????????????###???????#####??? | | ###??????????????????????????????????????????????? | | ?????????????????????????????????????????????????? | | ?????????????????????????????????????????????????? | | ?????????????????????????????????????????????????? | +----------------------------------------------------+ Best States ------------- Heat Dissipation 78 Energy Generation 33 Energy Capacity 530 Matter Stores 300 Matter Capacity 300 Sight Range 16 Terrain Scan Range 20 Terrain Scan Density 10 ECM Strength 1 Jamming Range 14 Armor Coverage 225 Resistance: EX 50 Resistance: EM 15 Power Shielding 66 Point Defense Rating 80 Evasion (%) 65 Targeting Accuracy 16 Recoil Reduction 2 Salvage Targeting 3 Offensive Hacking 20 Defensive Hacking 12 Item Schematics ----------------- None Robot Schematics ------------------ None Fabricated ------------ Nothing Repaired ---------- Med. Laser | 61% | -9/Materials Imp. Terrain Scanner | 27% | -9/Materials Flexi-carbon Leg | 39% | -5/Factory Studied --------- None Alien Tech Used ----------------- None Achievements -------------- A Problem For Future Me Deductive Reasoning Explosive Keycard I Like You, Cogmind Live, Flee, And Rebuild Challenges ------------ None Game ------ Seed BombardmentModifiedMace Manual? 0 Play Time 02:54:18 Cumulative 62.6 hours Start 2026.07.07 @ 20:13:40 End 2026.07.12 @ 18:37:21 Sessions 11 Manual Loads 0 Difficulty Rogue Special Mode None Game No. 37 Rogue 37 Adventurer 0 Explorer 0 Win Type - Total 0 Types 0/0/0/0/0/0/0/0/0/0 Lore% 19 Gallery% 40 Achievement% 28 Wizard Run 0 Options --------- Layout 1 ASCII 0 Keyboard 1 Movement Vi Keybinds 0 Fullscreen 1 Font 32/SmallcapsGlow Map View 50x35 Zoom Use 0% Tactical HUD 1 Map Filters NONE Filters NONE Steam 1 RUN: a20cd9b4-5482-4348-a37c-191dd79e85a0